Cogmind - Beta 16.1 @@@ ROGUE MODE // 2026.04.15 @ 23:25:33 Player: impermanentSelf Result: Destroyed by G-47 Trooper with Particle Gun Performance ------------- Evolutions (0) 0 Regions Visited (2) 400 Robots Destroyed (13) 65 Value Destroyed (347) 347 Prototype IDs (0) 0 Alien Tech Used (0) 0 Bonus (0) 0 TOTAL SCORE: 812 Bonus ------- None Cogmind --------- Core Integrity 0/250 Matter 203/300 Energy 125/125 System Corruption 0% Temperature Cool (37) Movement Flying (120) Ox1 Location -10/Mines Parts ------- > --- POWER (1) -------- Light Ion Engine > --- PROPULSION (2) --- Flight Unit > --- UTILITY (2) ------ Sensor Array Hacking Suite > --- WEAPON (2) ------- EM Pulse Gun > --- INVENTORY (5) ---- Flight Unit Flight Unit Utility Shielding Particle Gun Datajack Peak State ------------ > --- POWER ------------ Light Nuclear Core > --- PROPULSION ------- Flight Unit Flight Unit > --- UTILITY ---------- Utility Shielding Hacking Suite > --- WEAPON ----------- Assault Rifle Datajack > --- INVENTORY -------- (None) [Rating: 11] Favorites ----------- Power Ion Engine Engine Ion Engine Power Core Light Nuclear Core Propulsion Wheel Leg Aluminum Leg Wheel Wheel Hover Unit Hover Unit Flight Unit Flight Unit Utility Hacking Suite Device Sensor Array Storage Large Storage Unit Hackware Hacking Suite Protection Utility Shielding Weapon Assault Rifle Energy Gun Medium Laser Ballistic Gun Assault Rifle Launcher Grenade Launcher Special Melee Weapon Datajack Build | -11 -10 -10 ------- Run | Yrd Mat Min Slots Evolved . | . . . Power . | . . . Propulsion . | . . . Utility . | . . . Weapon . | . . . Parts Attached 26 | 9 16 1 Power 4 | 2 2 . Engine 3 | 2 1 . Core 1 | . 1 . Reactor . | . . . Propulsion 10 | 5 5 . Treads . | . . . Leg 2 | 2 . . Wheel 3 | 3 . . Hover 1 | . 1 . Flight 4 | . 4 . Utility 6 | . 6 . Device 1 | . 1 . Storage 2 | . 2 . Processor . | . . . Hackware 1 | . 1 . Protection 2 | . 2 . Artifact . | . . . Weapon 6 | 2 3 1 Energy Gun 2 | 1 . 1 Energy Cannon . | . . . Ballistic Gun 2 | 1 1 . Ballistic Cannon . | . . . Launcher 1 | . 1 . Special Weapon . | . . . Impact Weapon . | . . . Slashing Weapon . | . . . Piercing Weapon . | . . . Special Melee Weapon 1 | . 1 . Unidentified Prototypes . | . . . Parts Lost 6 | . 4 2 Power 1 | . 1 . Propulsion 3 | . 2 1 Utility . | . . . Weapon 2 | . 1 1 Highest Loss Streak 2 | . 2 2 To Critical Strikes . | . . . Average Backups 4 | 3 4 4 Power . | . . . Propulsion 1 | 2 1 2 Utility . | . 1 1 Weapon . | . . . Tool/Special . | . . . Unused Backups 7 | 3 1 3 Power . | . . . Propulsion 3 | 1 . 2 Utility . | . . . Weapon 4 | 2 1 1 Tool/Special . | . . . Average Slot Usage (%) 82 | . 83 73 Engine 7 | . 7 14 Core 3 | . 3 . Wheel 9 | . 10 . Hover 1 | . 1 . Flight 14 | . 13 18 Device 1 | . . 14 Storage 3 | . 3 . Hackware 10 | . 9 14 Protection 7 | . 7 . Energy Gun 2 | . 1 10 Ballistic Gun 12 | . 13 2 Launcher 5 | . 5 . Special Melee Weapon 2 | . 2 . Peak Build Rating 11 | 5 11 8 Average Rating 6 | 4 7 7 On Entrance 4 | . 5 8 Avg Prop Armor Cover (%) . | . . . Naked Turns . | . . . Heaviest Build 31 | 9 31 6 Greatest Support 20 | 20 20 4 Greatest Overweight (x) 7 | . 7 1 Average Overweight (x) . | . . 1 Largest Inventory Capacity 15 | 5 15 5 Average Capacity 6 | 5 7 5 Most Carried 10 | 5 10 5 Average Carried 4 | 3 4 4 Final Capacity 5 | 5 5 5 Final Carried 5 | 4 5 5 Class Distribution -------------------- 100% | Mutant Dominant Class ---------------- Mutant | -10/Materials Mutant | -10/Mines Resources | -11 -10 -10 ----------- Run | Yrd Mat Min Matter Collected 637 | 302 238 97 Remotely . | . . . Salvage Created 395 | 74 224 97 Parts 26 | 8 12 6 Haulers Intercepted . | . . . Recyclers Shooed . | . . . Parts Field Recycled . | . . . Retrieved Matter . | . . . Parts Self-Destructed . | . . . Prevented . | . . . Parts Restored . | . . . Kills | -11 -10 -10 ------- Run | Yrd Mat Min Combat Hostiles Destroyed 9 | 1 6 2 Guns 9 | 1 6 2 Classes Destroyed 6 | 3 3 . Worker 1 | 1 . . Tunneler 1 | 1 . . Operator 1 | . 1 . Watcher 1 | . 1 . Swarmer 2 | . 2 . Grunt 7 | 1 4 2 Best Kill Streak 2 | 1 2 2 Combat Bots Only 2 | 1 2 2 Max Kills in Single Turn 1 | 1 1 1 Gunslinging . | . . . Exploded . | . . . Melee . | . . . Uniques/NPCs Destroyed . | . . . Combat | -11 -10 -10 -------- Run | Yrd Mat Min Hostile Shots Fired 89 | 5 65 19 Missed 36 | . 30 6 Hits 53 | 5 35 13 Projectile 53 | 5 35 13 Damage Taken 701 | 59 456 186 Core 261 | 14 190 57 Absorbed by Shields . | . . . Core Remaining (%) 94 | 94 . . Volleys Fired 62 | 7 43 12 Largest 2 | 2 2 1 Hottest 70 | 70 50 40 Shots Fired 70 | 14 44 12 Gun 69 | 14 43 12 Cannon . | . . . Launcher 1 | . 1 . Special . | . . . Kinetic 53 | 7 43 3 Thermal 7 | 7 . . Explosive 1 | . 1 . Electromagnetic 9 | . . 9 Robot Hit Streak 14 | 3 14 10 Robot Miss Streak 3 | 2 3 3 Penetration Max . | . . . Secondary Targets . | . . . Shots Hit Robots 48 | 7 31 10 Core Hits 29 | 5 18 6 Critical Kills . | . . . Critical Parts Destroyed . | . . . Critical Strikes . | . . . Melee Attacks 3 | . 3 . Impact . | . . . Slashing . | . . . Piercing . | . . . Sneak Attacks . | . . . Combat Hostiles . | . . . Follow-up Attacks . | . . . Damage Inflicted 634 | 103 381 150 Guns 599 | 98 351 150 Cannons . | . . . Explosions 30 | . 30 . Melee . | . . . Ramming 5 | 5 . . Kinetic 435 | 47 351 37 Thermal 51 | 51 . . Explosive 30 | . 30 . Electromagnetic 113 | . . 113 Impact . | . . . Slashing . | . . . Piercing . | . . . Highest Corruption . | . . . Average Corruption . | . . . Corruption Purged . | . . . Corruption Blocked . | . . . Overload Shots . | . . . Overflow Damage . | . . . Projectiles . | . . . Explosions . | . . . Melee . | . . . Knockbacks . | . . . Impact . | . . . Kinetic . | . . . Secondary . | . . . Self-Inflicted Damage 41 | 2 39 . Shots 1 | . 1 . Rammed 2 | 2 . . Targets Rammed 2 | 2 . . Kicked . | . . . Crushed . | . . . Highest Temperature 36 | 36 12 28 Average Temperature 11 | 12 4 16 Received Heat Transfer 324 | 30 192 102 Siege Activations . | . . . Martial Activations . | . . . Shielding Activations . | . . . Robots Disrupted . | . . . Combat Hostiles . | . . . Robots Corrupted . | . . . Combat Hostiles . | . . . Parts Fried . | . . . Impact Corruptions . | . . . Robots Melted . | . . . Combat Hostiles . | . . . Parts Melted . | . . . Heat Transferred 148 | 148 . . Parts Sabotaged . | . . . Parts Stolen . | . . . Parts Stripped . | . . . Power Chain Reactions . | . . . Alert | -11 -10 -10 ------- Run | Yrd Mat Min Maximum Alert Level . | . . . Low Security (%) 100 | 100 100 100 Level 1 . | . . . Level 2 . | . . . Level 3 . | . . . Level 4 . | . . . Level 5 . | . . . High Security . | . . . Max Security . | . . . Peak Influence 101 | 20 101 69 Initial 24 | . . 24 Average 22 | 1 29 49 Influence Increases 371 | 30 276 65 Destroy 0b10 Robot/C 180 | 20 120 40 Destroy 0b10 Robot/NC 20 | 10 10 . Destroy Leader 42 | . 32 10 Successful Hack 14 | . 14 . Disable Machine 15 | . . 15 Destroy Structure 10 | . 10 . Partial Spotted 15 | . 15 . Lose Combat Pursuer 75 | . 75 . Influence Decreases 322 | 30 214 78 Entered New Map 38 | . . 38 Time Decay 224 | 30 174 20 Lost Part 60 | . 40 20 Squads Dispatched 1 | . 1 . Investigation . | . . . Extermination . | . . . Reinforcement 1 | . 1 . Assault . | . . . Garrison . | . . . Intercept . | . . . Searches Triggered . | . . . Construction Impeded . | . . . Haulers Reinforced . | . . . Active Scanning Responses . | . . . Cargo Convoy Interrupts . | . . . Stealth | -11 -10 -10 --------- Run | Yrd Mat Min Distress Signals 1 | . 1 . Communications Jammed . | . . . Distress Signals . | . . . Times Spotted 28 | 1 23 4 Peak Tracking Total 6 | 1 6 2 Tactical Retreats 3 | . 3 . Traps | -11 -10 -10 ------- Run | Yrd Mat Min Traps Triggered . | . . . Indirectly . | . . . Trap Hack Attempts . | . . . Triggered . | . . . Disarmed . | . . . Reprogrammed . | . . . Reused . | . . . Traps Extracted . | . . . Installed . | . . . Triggered . | . . . Machines | -11 -10 -10 ---------- Run | Yrd Mat Min Machines Disabled 1 | . . 1 Max in Single Turn 1 | . . 1 Machines Repaired . | . . . Machines Dismantled . | . . . Machines Sabotaged . | . . . Overloaded Fab Kills . | . . . Hacking | -11 -10 -10 --------- Run | Yrd Mat Min Machines Accessed 8 | . 8 . Terminals 6 | . 6 . Fabricators . | . . . Repair Stations 1 | . 1 . Recycling Units 1 | . 1 . Scanalyzers . | . . . Garrison Access . | . . . Total Hacks 23 | . 23 . Successful 19 | . 19 . Failed 4 | . 4 . Catastrophic . | . . . Database Lockouts . | . . . Manual 2 | . 2 . Terminals 19 | . 19 . Fabricators . | . . . Repair Stations 2 | . 2 . Recycling Units 2 | . 2 . Scanalyzers . | . . . Garrison Access . | . . . Terminal Hacks 16 | . 16 . Record 8 | . 8 . Emergency Access Points 1 | . 1 . Terminal Index 1 | . 1 . Alert Level 2 | . 2 . Dispatch Records 1 | . 1 . Maintenance Status 1 | . 1 . Hauler Manifests 1 | . 1 . Zone Layout 1 | . 1 . Fabricator Hacks . | . . . Repair Station Hacks 1 | . 1 . Scan Component 1 | . 1 . Recycling Unit Hacks 2 | . 2 . Process 1 | . 1 . Report Inventory 1 | . 1 . Scanalyzer . | . . . Garrison Access Hacks . | . . . Unauthorized Hacks . | . . . Terminals . | . . . Fabricators . | . . . Repair Stations . | . . . Recycling Units . | . . . Scanalyzers . | . . . Garrison Access . | . . . Data Cores Recovered 1 | . 1 . Used . | . . . Hacking Detections 4 | . 4 . Full Trace Events . | . . . Feedback Events . | . . . Feedback Blocked . | . . . Robot Schematics Acquired . | . . . Robots Built . | . . . Authchips . | . . . Time . | . . . Total Robot Build Rating . | . . . Part Schematics Acquired . | . . . Parts Built . | . . . Authchips . | . . . Time . | . . . Total Part Build Rating . | . . . Part Studies Acquired . | . . . Parts Repaired . | . . . Time . | . . . Parts Recycled . | . . . Recycled Matter 92 | . 92 . Retrieved Matter . | . . . Retrieved Components . | . . . Parts Scanalyzed . | . . . Part Schematics Acquired . | . . . Parts Damaged . | . . . Bothacking | -11 -10 -10 ------------ Run | Yrd Mat Min Used RIF Installer . | . . . Robots Hacked 1 | . 1 . Non-combat . | . . . Combat 1 | . 1 . Robot Hacks Applied 1 | . 1 . parse_system 1 | . 1 . Relay Couplers Released . | . . . Fabnet Peak Effective % . | . . . Robots Rewired . | . . . Allies Hacked . | . . . Hacks Repelled . | . . . Allies | -11 -10 -10 -------- Run | Yrd Mat Min Total Allies . | . . . Largest Group . | . . . Highest-Rated Group . | . . . Highest-Rated Ally . | . . . Total Orders . | . . . Ally Attacks . | . . . Total Damage . | . . . Kills . | . . . Allies Corrupted . | . . . Allies Melted . | . . . Intel | -11 -10 -10 ------- Run | Yrd Mat Min Active Infowar (turns) 76 | . 19 57 Sensors 76 | . 19 57 Robot Analysis Total . | . . . Derelict Logs Recovered . | . . . Drone Launches . | . . . Drone Recoveries . | . . . Exploration | -11 -10 -10 ------------- Run | Yrd Mat Min Turns Passed 1021 | 281 683 57 Spaces Moved 1088 | 230 833 25 Core 48 | 22 26 . Treads . | . . . Legs 2 | 2 . . Wheels 443 | 206 237 . Hover 4 | . 4 . Flight 591 | . 566 25 Fastest Speed 37 | 50 37 120 Average Speed 61 | 77 55 120 Slowest Speed 600 | 120 600 120 Overloaded Moves . | . . . Propulsion Burnouts . | . . . Robots Hopped 2 | . 2 . Potential Cave-ins . | . . . Cave-ins Triggered . | . . . Exploration Rate (%) 32 | 8 81 8 Regions Visited 2 Branch Regions 1 Pre-discovered Areas . | . . . Known Exits Taken . | . . . Unknown Exits Taken 2 | 1 1 . Scrap Searched . | . . . Spaces Dug . | . . . Terrain Destroyed 7 | . 7 . Melee . | . . . Projectile . | . . . AOE 7 | . 7 . Terrain Rammed . | . . . Walls Destroyed . | . . . Machines Disabled . | . . . Actions | -11 -10 -10 --------- Run | Yrd Mat Min Total 1385 | 320 1025 40 Wait 107 | 52 54 1 Move 1083 | 229 829 25 Hop 1 | . 1 . Pick Up 33 | 15 17 1 Fast Attach 13 | . 13 . Attach 25 | 6 18 1 Detach 22 | . 22 . Swap 4 | 3 1 . Drop 30 | 6 24 . Fire 62 | 7 43 12 Melee 3 | . 3 . Ram 2 | 2 . . Kick . | . . . Crush . | . . . Escape Stasis . | . . . Rewire . | . . . Trap . | . . . Miscellaneous . | . . . Route ------- -11/Scrapyard -10/Materials (discovered 3 exits: [*Mat x2] / [*Min]) -10/Mines History --------- Turn | Location | Event 2 | -11/Scrapyard | Met Revision 17 79 | -11/Scrapyard | Discovered new exit (range 8) 282 | -11/Scrapyard | Entered Materials 308 | -10/Materials | Build established: Mutant 664 | -10/Materials | Discovered new exit (range 14) 721 | -10/Materials | Discovered new exit (range 13) 822 | -10/Materials | Core integrity fell below 50% 836 | -10/Materials | Core integrity fell below 20% 901 | -10/Materials | Discovered new exit (range 15) 965 | -10/Materials | Entered Mines 1022 | -10/Mines | Destroyed by G-47 Trooper with Particle Gun Last Messages --------------- Dropped Hcp. Matter Pod. Acquired Sensor Array. Dropped Utility Shielding. Dropped Sensor Array. Acquired Utility Shielding. Acquired Sensor Array. Dropped Utility Shielding. Acquired Utility Shielding. LOCATION=UNKNOWN GOAL=ESCAPE Assault Rifle destroyed. Flight Unit destroyed. G-47 Trooper destroyed. Laser Drill disabled. G-34 Mercenary destroyed. Acquired Particle Gun. Acquired 47 matter. Acquired 50 matter. G-47 Trooper misfires. [Achievement: First Step to Greatness] Map ----- +----------------------------------------------------+ | | | | | | | | | | | | | | | | | | | | | | | | | | | | | | | | | ?????????????????????????????????????????????????? | | ?????????????????????????????????????????????????? | | ?????????????????????????????????????????????????? | | ?????????????????????????????????????????????????? | | ???????????##????????????????????????????????????? | | ??????????? ??????#####?????????????????????? | | ????????????? #### ##????????????????????? | | ???????????????"""" #????????????????????? | | ???????????????"""" #?????????????????????? | | ???????????????"""" ####@##?????????????????????? | | ????????????????????????# #??????????????????????? | | ????????????????????????# #????#####?????????????? | | ????????????????????????#g###### ##????????????? | | ????????????????????????# ##???? ???? | | ????????????????????????###### ## ? | | ?????????????????????????????#= ? "" #????? | | ?????????????????????????????#*!! ### """ #????? | | ?????????????????????????????#= #????????????? | | ?????????????????????????????## ? #????????????? | | ??????????????????????????????#### #????????????? | | ?????????????????????????????????? #????????????? | | ?????????????????????????????????? #????????????? | | ?????????????????????????????????? #????????????? | | ?????????????????????????????????? #????????????? | | ?????????????????????????????????? #????????????? | | ?????????????????????????????????? #????????????? | | ?????????????????????????????????? #????????????? | | ??????????????????????????????????? #????????????? | | ??????????????????????????????????? #????????????? | | ??????????????????????????????????? #????????????? | | ??????????????????????????????????? ?????????????? | | ?????????????????????????????????????????????????? | | ?????????????????????????????????????????????????? | | ?????????????????????????????????????????????????? | +----------------------------------------------------+ Best States ------------- Heat Dissipation 25 Energy Generation 14 Energy Capacity 250 Matter Stores 300 Matter Capacity 300 Sight Range 16 Robot Scan Range 14 Terrain Scan Density 10 Power Shielding 33 Utility Shielding 33 Evasion (%) 62 Offensive Hacking 10 Item Schematics ----------------- None Robot Schematics ------------------ None Fabricated ------------ Nothing Repaired ---------- Nothing Studied --------- None Alien Tech Used ----------------- None Achievements -------------- Crack Shot First Step to Greatness For Emergencies Only Ghost 'Em Let's See Who's Tougher Organ Harvest Shopping List There's More Where That Came From Uninvited Guest Challenges ------------ None Game ------ Seed RefineryGlidesysRefractor Manual? 0 Play Time 00:46:54 Cumulative 0.7 hours Start 2026.04.15 @ 22:32:39 End 2026.04.15 @ 23:25:33 Sessions 1 Manual Loads 0 Difficulty Rogue Special Mode None Game No. 1 Rogue 1 Adventurer 0 Explorer 0 Win Type - Total 0 Types 0/0/0/0/0/0/0/0/0/0 Lore% 0 Gallery% 1 Achievement% 1 Wizard Run 0 Options --------- Layout 1 ASCII 0 Keyboard 1 Movement Numpad Keybinds 0 Fullscreen 1 Font 32/SmallcapsGlow Map View 50x40 Zoom Use 0% Tactical HUD 0 Map Filters NONE Filters NONE Steam 1 RUN: df66f9bf-1286-4eb2-9068-99e26797b42e